[Event "18th Charleroi Open-A 2019"]
[Site "Charleroi"]
[Date "2019.08.03"]
[Round "9.6"]
[White "Lacroix, Bruno"]
[Black "Capone, Nicola"]
[Result "1/2-1/2"]
[ECO "D93"]
[WhiteElo "2152"]
[BlackElo "2297"]
[Annotator "NA"]
[PlyCount "162"]
[EventDate "2019.07.22"]
[EventType "swiss"]
[EventCountry "BEL"]
[SourceTitle "playchess.com"]
[Source "ChessBase"]
[SourceQuality "1"]
[TimeControl "40/5400+30:1800+30"]

1. c4 {[%emt 0:00:00]} Nf6 {[%emt 0:00:00]} 2. Nc3 {[%emt 0:00:00]} g6 {[%emt 0:00:00]} 3. d4 {[%emt 0:00:00]} d5 {[%emt 0:00:11]} 4. Nf3 {[%emt 0:00:11]} Bg7 {[%emt 0:00:09]} 5. Bf4 {[%emt 0:00:24]} O-O {[%emt 0:10:09]} 6. Rc1 {[%emt 0:00:09]} c6 {[%emt 0:02:16]} 7. e3 {[%emt 0:00:29]} Bf5 {[%emt 0:00:21]} 8. h3 {[%emt 0:00:56]} Qb6 {[%emt 0:06:46]} 9. Qb3 {[%emt 0:02:49]} Qxb3 {[%emt 0:19:35]} 10. axb3 {[%emt 0:00:10]} Na6 {[%emt 0:02:18]} 11. g4 {[%emt 0:19:06]} Be4 {[%emt 0:03:34]} 12. Nxe4 {[%emt 0:00:31]} Nxe4 {[%emt 0:00:10]} 13. Nd2 {[%emt 0:08:25]} Nb4 {[%emt 0:09:39]} 14. c5 {[%emt 0:16:29]} Rfe8 {[%emt 0:06:51]} 15. f3 {[%emt 0:08:13]} Nxd2 {[%emt 0:11:23]} 16. Kxd2 {[%emt 0:00:04]} e5 {[%emt 0:00:06]} 17. Bxe5 {[%emt 0:00:19]} Bxe5 {[%emt 0:00:05]} 18. dxe5 {[%emt 0:00:03]} Rxe5 {[%emt 0:00:10]} 19. Bd3 {[%emt 0:00:26]} b6 {[%emt 0:08:05]} 20. Rhe1 {[%emt 0:02:33]} Rb8 {[%emt 0:00:51]} 21. Bb1 {[%emt 0:07:34]} Rd8 {[%emt 0:08:02]} 22. Kc3 {[%emt 0:04:39]} bxc5 {[%emt 0:00:18]} 23. f4 {[%emt 0:00:14]} d4+ {[%emt 0:04:23]} 24. exd4 {[%emt 0:02:28]} Rxe1 {[%emt 0:00:05]} 25. Rxe1 {[%emt 0:00:04]} Rxd4 {[%emt 0:00:04]} 26. Be4 {[%emt 0:01:37]} Kg7 {[%emt 0:03:55]} 27. f5 {[%emt 0:01:47]} Kf6 {[%emt 0:00:21]} 28. fxg6 {[%emt 0:00:19]} hxg6 {[%emt 0:00:36]} 29. h4 {[%emt 0:00:49]} Kg7 {[%emt 0:00:24]} 30. g5 {[%emt 0:01:11]} f5 {[%emt 0:01:24]} 31. gxf6+ {[%emt 0:00:15]} Kxf6 {[%emt 0:00:02]} 32. Rf1+ {[%emt 0:01:55]} Kg7 {[%emt 0:00:03]} 33. Re1 {[%emt 0:00:18]} Kh6 {[%emt 0:00:06]} 34. Re2 {[%emt 0:01:16]} Rd1 {[%emt 0:02:14]} 35. Rg2 {[%emt 0:02:01]} Nd5+ {[%emt 0:00:10]} 36. Bxd5 {[%emt 0:00:19]} cxd5 {[%emt 0:00:07]} 37. Rg5 {[%emt 0:00:09]} Rd4 {[%emt 0:00:55]} 38. Kc2 {[%emt 0:00:27]} c4 {[%emt 0:01:47]} 39. b4 {[%emt 0:00:18]} a6 {[%emt 0:01:03]} 40. Kc3 {[%emt 0:00:16]} Rd3+ {[%emt 0:00:04]} 41. Kc2 {[%emt 0:30:04]} d4 {[%emt 0:21:20]} 42. Rg4 {[%emt 0:00:00]} Kh5 {[%emt 0:01:51]} 43. Rg5+ {[%emt 0:00:00]} Kxh4 {[%emt 0:03:07]} 44. Rxg6 {[%emt 0:00:00]} Rb3 {[%emt 0:01:32]} 45. Rxa6 {[%emt 0:00:00]} Kg5 {[%emt 0:00:50]} 46. Re6 {[%emt 0:00:00]} Kf5 {[%emt 0:00:19]} 47. Re8 {[%emt 0:00:00]} d3+ {[%emt 0:00:12]} 48. Kc1 {[%emt 0:00:00]} Rxb4 {[%emt 0:00:05]} 49. Re7 {[%emt 0:00:00]} Kf4 {[%emt 0:00:31]} 50. Rf7+ {[%emt 0:00:00]} Ke3 {[%emt 0:00:16]} 51. Re7+ {[%emt 0:00:00]} Kd4 {[%emt 0:00:04]} 52. Rd7+ {[%emt 0:00:00]} Kc5 {[%emt 0:00:45]} 53. Rc7+ {[%emt 0:00:00]} Kd5 {[%emt 0:01:43]} 54. Rd7+ {[%emt 0:00:00]} Kc6 {[%emt 0:00:04]} 55. Rd8 {[%emt 0:00:00]} Rb5 {[%emt 0:01:07]} 56. Rc8+ {[%emt 0:00:00]} Kd5 {[%emt 0:00:06]} 57. Rh8 {[%emt 0:00:00]} Rb6 {[%emt 0:00:42]} 58. Rh5+ {[%emt 0:00:00]} Kd4 {[%emt 0:00:04]} 59. Rh4+ {[%emt 0:00:00]} Kc5 {[%emt 0:00:04]} 60. Rh5+ {[%emt 0:00:00]} Kb4 {[%emt 0:00:18]} 61. Rh8 {[%emt 0:00:00]} Kb3 {[%emt 0:02:47]} 62. Rc8 {[%emt 0:00:00]} Rb4 {[%emt 0:00:22]} 63. Rd8 {[%emt 0:00:00]} Rb5 {[%emt 0:00:22]} 64. Rc8 {[%emt 0:00:01]} Rb4 {[%emt 0:01:28]} 65. Rd8 {[%emt 0:00:17]} Ka4 {[%emt 0:00:05]} 66. Ra8+ {[%emt 0:00:23]} Kb5 {[%emt 0:00:03]} 67. Rb8+ {[%emt 0:00:18]} Kc5 {[%emt 0:00:02]} 68. Rc8+ {[%emt 0:00:08]} Kd6 {[%emt 0:02:23]} 69. Rd8+ {[%emt 0:00:59]} Kc6 {[%emt 0:00:06]} 70. Rc8+ {[%emt 0:00:19]} Kb7 {[%emt 0:01:04]} 71. Rc5 {[%emt 0:01:11]} Kb6 {[%emt 0:00:15]} 72. Rc8 {[%emt 0:00:12]} Ra4 {[%emt 0:00:20]} 73. Kd2 {[%emt 0:02:18]} Kb5 {[%emt 0:01:38]} 74. Kc3 {[%emt 0:02:33]} Ra6 {[%emt 0:00:06]} 75. Rd8 {[%emt 0:01:35]} Kc5 {[%emt 0:00:46]} 76. Rc8+ {[%emt 0:01:37]} Kb5 {[%emt 0:00:42]} 77. Rb8+ {[%emt 0:00:32]} Kc6 {[%emt 0:01:33]} 78. Kxc4 {[%emt 0:04:46]} Kc7 {[%emt 0:00:18]} 79. Rh8 {[%emt 0:00:04]} d2 {[%emt 0:00:15]} 80. Rh1 {[%emt 0:00:03]} Rc6+ {[%emt 0:00:10]} 81. Kd3 {[%emt 0:00:11]} Rd6+ {[%emt 0:00:10]} 1/2-1/2

[Event "18th Charleroi Open-A 2019"]
[Site "Charleroi"]
[Date "2019.08.03"]
[Round "9.8"]
[White "De Villers, Mourad"]
[Black "Abdullayev, Elshad"]
[Result "0-1"]
[ECO "A11"]
[WhiteElo "2140"]
[BlackElo "2204"]
[Annotator "NA"]
[PlyCount "84"]
[EventDate "2019.07.22"]
[EventType "swiss"]
[EventCountry "BEL"]
[SourceTitle "playchess.com"]
[Source "ChessBase"]
[SourceQuality "1"]
[TimeControl "40/5400+30:1800+30"]

1. c4 {[%emt 0:00:00]} c6 {[%emt 0:03:30]} 2. Nf3 {[%emt 0:00:03]} d5 {[%emt 0:00:16]} 3. g3 {[%emt 0:00:29]} Nf6 {[%emt 0:00:17]} 4. Bg2 {[%emt 0:00:15]} Bf5 {[%emt 0:01:12]} 5. cxd5 {[%emt 0:01:28]} cxd5 {[%emt 0:00:36]} 6. Qb3 {[%emt 0:00:39]} Qc8 {[%emt 0:02:23]} 7. Nc3 {[%emt 0:02:13]} e6 {[%emt 0:02:05]} 8. d3 {[%emt 0:01:20]} Nc6 {[%emt 0:00:31]} 9. O-O {[%emt 0:03:39]} h6 {[%emt 0:04:03]} 10. Bf4 {[%emt 0:02:01]} Be7 {[%emt 0:10:50]} 11. Ne5 {[%emt 0:18:37]} g5 {[%emt 0:07:06]} 12. Nxc6 {[%emt 0:02:22]} bxc6 {[%emt 0:00:05]} 13. Be5 {[%emt 0:02:39]} O-O {[%emt 0:00:25]} 14. e4 {[%emt 0:01:05]} Bg6 {[%emt 0:04:50]} 15. Bxf6 {[%emt 0:00:42]} Bxf6 {[%emt 0:00:05]} 16. f4 {[%emt 0:00:31]} Rb8 {[%emt 0:06:20]} 17. Qc2 {[%emt 0:01:30]} gxf4 {[%emt 0:02:40]} 18. gxf4 {[%emt 0:00:24]} Bd4+ {[%emt 0:00:07]} 19. Kh1 {[%emt 0:00:21]} f5 {[%emt 0:00:17]} 20. Rae1 {[%emt 0:01:34]} Rb7 {[%emt 0:15:51]} 21. b3 {[%emt 0:04:07]} fxe4 {[%emt 0:03:49]} 22. dxe4 {[%emt 0:00:46]} Rbf7 {[%emt 0:01:13]} 23. Qd2 {[%emt 0:03:13]} Bg7 {[%emt 0:10:56]} 24. f5 {[%emt 0:00:52]} Bh7 {[%emt 0:17:30]} 25. Rg1 {[%emt 0:05:30]} d4 {[%emt 0:04:20]} 26. Na4 {[%emt 0:06:48]} exf5 {[%emt 0:00:19]} 27. e5 {[%emt 0:00:17]} f4 {[%emt 0:00:36]} 28. Bf3 {[%emt 0:02:34]} c5 {[%emt 0:01:06]} 29. Bd5 {[%emt 0:01:40]} Kh8 {[%emt 0:00:26]} 30. Bxf7 {[%emt 0:02:41]} Rxf7 {[%emt 0:00:02]} 31. e6 {[%emt 0:00:12]} Re7 {[%emt 0:01:11]} 32. Qg2 {[%emt 0:13:03]} d3 {[%emt 0:00:15]} 33. Qd5 {[%emt 0:00:19]} Bd4 {[%emt 0:00:40]} 34. Rg2 {[%emt 0:00:59]} Bg8 {[%emt 0:00:33]} 35. Rg6 {[%emt 0:03:25]} d2 {[%emt 0:00:20]} 36. Rxh6+ {[%emt 0:01:10]} Rh7 {[%emt 0:00:36]} 37. Rxh7+ {[%emt 0:00:46]} Kxh7 {[%emt 0:00:29]} 38. Qh5+ {[%emt 0:03:59]} Kg7 {[%emt 0:00:01]} 39. Re4 {[%emt 0:08:48]} Qa8 {[%emt 0:01:03]} 40. Nxc5 {[%emt 0:00:52]} Bh7 {[%emt 0:00:27]} 41. Qg4+ {[%emt 0:35:59]} Kh8 {[%emt 0:30:22]} 42. Qh5 {[%emt 0:01:08]} Kg8 {[%emt 0:01:17]} 0-1

[Event "18th Charleroi Open-A 2019"]
[Site "Charleroi"]
[Date "2019.08.03"]
[Round "9.9"]
[White "Hoffmeister, Frank"]
[Black "Dauw, Sterre"]
[Result "1-0"]
[ECO "D93"]
[WhiteElo "2187"]
[BlackElo "2148"]
[Annotator "NA"]
[PlyCount "49"]
[EventDate "2019.07.22"]
[EventType "swiss"]
[EventCountry "BEL"]
[SourceTitle "playchess.com"]
[Source "ChessBase"]
[SourceQuality "1"]
[TimeControl "40/5400+30:1800+30"]

1. d4 {[%emt 0:00:00]} Nf6 {[%emt 0:03:14]} 2. c4 {[%emt 0:00:00]} g6 {[%emt 0:00:04]} 3. Nc3 {[%emt 0:00:00]} d5 {[%emt 0:00:03]} 4. Nf3 {[%emt 0:00:00]} Bg7 {[%emt 0:00:08]} 5. Bf4 {[%emt 0:00:00]} O-O {[%emt 0:00:08]} 6. e3 {[%emt 0:00:00]} c5 {[%emt 0:01:15]} 7. dxc5 {[%emt 0:00:07]} Qa5 {[%emt 0:01:55]} 8. Rc1 {[%emt 0:00:07]} dxc4 {[%emt 0:08:11]} 9. Bxc4 {[%emt 0:00:55]} Qxc5 {[%emt 0:00:14]} 10. Bb3 {[%emt 0:00:05]} Qa5 {[%emt 0:00:17]} 11. O-O {[%emt 0:00:19]} Nc6 {[%emt 0:00:27]} 12. h3 {[%emt 0:00:29]} Bf5 {[%emt 0:03:32]} 13. Qe2 {[%emt 0:03:16]} Ne4 {[%emt 0:02:46]} 14. Nd5 {[%emt 0:01:15]} e5 {[%emt 0:02:44]} 15. Bg5 {[%emt 0:02:13]} Nxg5 {[%emt 0:06:41]} 16. Nxg5 {[%emt 0:00:06]} h6 {[%emt 0:01:48]} 17. Rxc6 {[%emt 0:03:10]} hxg5 {[%emt 0:07:21]} 18. Rd6 {[%emt 0:01:51]} Kh7 {[%emt 0:08:59]} 19. Ne7 {[%emt 0:16:01]} Be4 {[%emt 0:02:35]} 20. Qg4 {[%emt 0:13:40]} Bc6 {[%emt 0:14:20]} 21. Qxg5 {[%emt 0:05:39]} Qb4 {[%emt 0:00:38]} 22. Rxg6 {[%emt 0:01:27]} fxg6 {[%emt 0:01:17]} 23. Qxg6+ {[%emt 0:00:07]} Kh8 {[%emt 0:00:06]} 24. Qh5+ {[%emt 0:00:00]} Bh6 {[%emt 0:00:07]} 25. Qxh6# {[%emt 0:00:02]} 1-0

[Event "18th Charleroi Open-A 2019"]
[Site "Charleroi"]
[Date "2019.08.03"]
[Round "9.10"]
[White "Manafov, Vugar"]
[Black "Sclacmender, Julien"]
[Result "1/2-1/2"]
[ECO "A04"]
[WhiteElo "2175"]
[BlackElo "2269"]
[Annotator "NA"]
[PlyCount "65"]
[EventDate "2019.07.22"]
[EventType "swiss"]
[EventCountry "BEL"]
[SourceTitle "playchess.com"]
[Source "ChessBase"]
[SourceQuality "1"]
[TimeControl "40/5400+30:1800+30"]

1. Nf3 {[%emt 0:03:17]} c5 {[%emt 0:00:00]} 2. g3 {[%emt 0:00:08]} Nc6 {[%emt 0:00:00]} 3. Bg2 {[%emt 0:00:03]} g6 {[%emt 0:00:00]} 4. O-O {[%emt 0:01:32]} Bg7 {[%emt 0:00:00]} 5. e4 {[%emt 0:00:36]} e5 {[%emt 0:00:16]} 6. Nh4 {[%emt 0:02:54]} d6 {[%emt 0:02:04]} 7. d3 {[%emt 0:00:43]} Nge7 {[%emt 0:00:07]} 8. f4 {[%emt 0:00:07]} exf4 {[%emt 0:00:14]} 9. gxf4 {[%emt 0:00:06]} f5 {[%emt 0:00:11]} 10. exf5 {[%emt 0:01:32]} Nxf5 {[%emt 0:01:08]} 11. Re1+ {[%emt 0:00:30]} Kf8 {[%emt 0:16:42]} 12. Nf3 {[%emt 0:00:28]} Nh4 {[%emt 0:05:51]} 13. Nbd2 {[%emt 0:05:48]} Bg4 {[%emt 0:03:42]} 14. c3 {[%emt 0:03:52]} Bf6 {[%emt 0:21:22]} 15. h3 {[%emt 0:13:20]} Bh5 {[%emt 0:02:30]} 16. Ne4 {[%emt 0:02:57]} Kg7 {[%emt 0:02:21]} 17. Ng3 {[%emt 0:01:32]} Bxf3 {[%emt 0:04:07]} 18. Bxf3 {[%emt 0:01:00]} Nxf3+ {[%emt 0:00:31]} 19. Qxf3 {[%emt 0:00:06]} Bh4 {[%emt 0:07:13]} 20. Re6 {[%emt 0:12:28]} Bxg3 {[%emt 0:03:40]} 21. Qxg3 {[%emt 0:00:10]} Ne7 {[%emt 0:02:18]} 22. Bd2 {[%emt 0:03:01]} Nf5 {[%emt 0:03:19]} 23. Qf3 {[%emt 0:01:21]} Qd7 {[%emt 0:00:45]} 24. Rae1 {[%emt 0:00:15]} b5 {[%emt 0:16:11]} 25. Qe4 {[%emt 0:03:05]} Kf7 {[%emt 0:01:01]} 26. Qd5 {[%emt 0:01:29]} Kg7 {[%emt 0:00:01]} 27. Qe4 {[%emt 0:01:58]} Kf7 {[%emt 0:00:04]} 28. Qd5 {[%emt 0:00:49]} Kg7 {[%emt 0:08:22]} 29. d4 {[%emt 0:39:23]} Kf7 {[%emt 0:00:30]} 30. Qe4 cxd4 31. cxd4 {[%emt 0:01:00]} d5 {[%emt 0:01:00]} 32. Qe5 {[%emt 0:00:30]} Rhe8 {[%emt 0:00:30]} 33. Qe4 {[%emt 0:00:30]} 1/2-1/2

[Event "18th Charleroi Open-A 2019"]
[Site "Charleroi"]
[Date "2019.08.03"]
[Round "9.11"]
[White "Gijsen, Stief"]
[Black "Roger, Mehdi"]
[Result "1/2-1/2"]
[ECO "C13"]
[WhiteElo "2227"]
[BlackElo "2125"]
[Annotator "NA"]
[PlyCount "116"]
[EventDate "2019.07.22"]
[EventType "swiss"]
[EventCountry "BEL"]
[SourceTitle "playchess.com"]
[Source "ChessBase"]
[SourceQuality "1"]
[TimeControl "40/5400+30:1800+30"]

1. e4 {[%emt 0:00:00]} e6 {[%emt 0:03:21]} 2. d4 {[%emt 0:00:00]} d5 {[%emt 0:00:05]} 3. Nc3 {[%emt 0:00:00]} Nf6 {[%emt 0:02:00]} 4. Bg5 {[%emt 0:04:34]} dxe4 {[%emt 0:00:45]} 5. Nxe4 {[%emt 0:00:44]} Be7 {[%emt 0:00:36]} 6. Bxf6 {[%emt 0:04:48]} Bxf6 {[%emt 0:03:16]} 7. Nf3 {[%emt 0:00:39]} Bd7 {[%emt 0:01:58]} 8. Nxf6+ {[%emt 0:06:19]} Qxf6 {[%emt 0:00:23]} 9. Ne5 {[%emt 0:00:23]} O-O {[%emt 0:10:14]} 10. Bd3 {[%emt 0:09:51]} c5 {[%emt 0:21:14]} 11. Qh5 {[%emt 0:04:09]} g6 {[%emt 0:00:33]} 12. Qe2 {[%emt 0:01:00]} Bc6 {[%emt 0:15:04]} 13. O-O-O {[%emt 0:10:28]} cxd4 {[%emt 0:15:41]} 14. Kb1 {[%emt 0:10:52]} Bxg2 {[%emt 0:03:32]} 15. Rhg1 {[%emt 0:05:47]} Nc6 {[%emt 0:02:33]} 16. Nd7 {[%emt 0:05:05]} Qf3 {[%emt 0:00:07]} 17. Nxf8 {[%emt 0:01:21]} Rxf8 {[%emt 0:00:05]} 18. Qe1 {[%emt 0:04:13]} Qh3 {[%emt 0:01:44]} 19. f4 {[%emt 0:01:40]} Bd5 {[%emt 0:05:19]} 20. Qf2 {[%emt 0:00:59]} a6 {[%emt 0:07:20]} 21. Rg3 {[%emt 0:05:47]} Qh6 {[%emt 0:02:20]} 22. a3 {[%emt 0:01:11]} Rd8 {[%emt 0:00:37]} 23. f5 {[%emt 0:04:34]} exf5 {[%emt 0:00:23]} 24. Bxf5 {[%emt 0:01:36]} Re8 {[%emt 0:02:02]} 25. Bd7 {[%emt 0:04:12]} Re4 {[%emt 0:00:36]} 26. Bxc6 {[%emt 0:00:36]} Bxc6 {[%emt 0:00:05]} 27. Rgd3 {[%emt 0:00:14]} Rf4 {[%emt 0:00:38]} 28. Qg1 {[%emt 0:03:13]} Bf3 {[%emt 0:00:52]} 29. R1d2 {[%emt 0:01:37]} Qh4 {[%emt 0:00:34]} 30. Rxd4 {[%emt 0:01:08]} Rxd4 {[%emt 0:00:12]} 31. Rxd4 {[%emt 0:00:04]} Qf6 {[%emt 0:00:46]} 32. Qe3 {[%emt 0:00:15]} Bc6 {[%emt 0:00:07]} 33. Rd2 {[%emt 0:03:15]} Kg7 {[%emt 0:00:48]} 34. Qd4 {[%emt 0:02:36]} h5 {[%emt 0:00:38]} 35. c3 {[%emt 0:00:29]} g5 {[%emt 0:00:26]} 36. Kc2 {[%emt 0:00:58]} Kg6 {[%emt 0:00:22]} 37. Qxf6+ {[%emt 0:01:08]} Kxf6 {[%emt 0:00:01]} 38. Kd3 {[%emt 0:00:10]} Ke5 {[%emt 0:00:21]} 39. Ke3 {[%emt 0:02:21]} f5 {[%emt 0:00:07]} 40. Rd8 {[%emt 0:00:04]} f4+ {[%emt 0:00:08]} 41. Kf2 {[%emt 0:30:04]} Kf5 {[%emt 0:11:07]} 42. Rg8 {[%emt 0:00:00]} g4 {[%emt 0:13:00]} 43. Rg7 {[%emt 0:00:00]} h4 {[%emt 0:00:19]} 44. a4 {[%emt 0:00:00]} g3+ {[%emt 0:00:39]} 45. hxg3 {[%emt 0:00:00]} hxg3+ {[%emt 0:04:58]} 46. Kg1 {[%emt 0:00:00]} Ke4 {[%emt 0:02:03]} 47. a5 {[%emt 0:00:00]} Kd3 {[%emt 0:01:10]} 48. c4 {[%emt 0:00:00]} f3 {[%emt 0:02:12]} 49. b4 {[%emt 0:00:00]} Kxc4 {[%emt 0:00:21]} 50. Rxg3 {[%emt 0:00:00]} Kxb4 {[%emt 0:00:04]} 51. Rg5 {[%emt 0:00:00]} Bb5 {[%emt 0:00:20]} 52. Kf2 {[%emt 0:00:00]} Kxa5 {[%emt 0:00:21]} 53. Kxf3 {[%emt 0:00:00]} Kb4 {[%emt 0:00:23]} 54. Ke3 {[%emt 0:00:00]} Bc4 {[%emt 0:00:43]} 55. Kd2 {[%emt 0:00:00]} b5 {[%emt 0:00:39]} 56. Kc2 {[%emt 0:00:00]} Bf1 {[%emt 0:01:13]} 57. Kb2 {[%emt 0:00:00]} Ka4 {[%emt 0:00:18]} 58. Rg1 {[%emt 0:00:11]} Bc4 {[%emt 0:00:38]} 1/2-1/2

[Event "18th Charleroi Open-A 2019"]
[Site "Charleroi"]
[Date "2019.08.03"]
[Round "9.12"]
[White "Roos, David"]
[Black "De Waele, Warre"]
[Result "0-1"]
[ECO "B94"]
[WhiteElo "2114"]
[BlackElo "2225"]
[Annotator "NA"]
[PlyCount "57"]
[EventDate "2019.07.22"]
[EventType "swiss"]
[EventCountry "BEL"]
[SourceTitle "playchess.com"]
[Source "ChessBase"]
[SourceQuality "1"]
[TimeControl "40/5400+30:1800+30"]

1. e4 {[%emt 0:00:00]} c5 {[%emt 0:00:00]} 2. Nf3 {[%emt 0:00:00]} d6 {[%emt 0:00:00]} 3. d4 {[%emt 0:00:00]} cxd4 {[%emt 0:00:03]} 4. Nxd4 {[%emt 0:00:03]} Nf6 {[%emt 0:00:14]} 5. Nc3 {[%emt 0:00:04]} a6 {[%emt 0:00:05]} 6. Bg5 {[%emt 0:00:51]} Nbd7 {[%emt 0:00:06]} 7. Qe2 {[%emt 0:00:54]} b5 {[%emt 0:03:05]} 8. f4 {[%emt 0:03:51]} h6 {[%emt 0:14:17]} 9. Bh4 {[%emt 0:10:22]} e5 {[%emt 0:03:42]} 10. O-O-O {[%emt 0:24:25]} g5 {[%emt 0:12:41]} 11. fxe5 {[%emt 0:15:48]} dxe5 {[%emt 0:00:23]} 12. Bg3 {[%emt 0:00:01]} exd4 {[%emt 0:02:37]} 13. e5 {[%emt 0:00:10]} Ng8 {[%emt 0:09:26]} 14. Qe4 {[%emt 0:22:03]} Ra7 {[%emt 0:11:09]} 15. e6 {[%emt 0:03:31]} Ndf6 {[%emt 0:05:43]} 16. Bxb5+ {[%emt 0:02:41]} axb5 {[%emt 0:01:50]} 17. Qc6+ {[%emt 0:00:01]} Bd7 {[%emt 0:01:03]} 18. exd7+ {[%emt 0:00:10]} Qxd7 {[%emt 0:02:27]} 19. Rhe1+ {[%emt 0:00:04]} Be7 {[%emt 0:00:15]} 20. Rxe7+ {[%emt 0:02:57]} Kxe7 {[%emt 0:02:21]} 21. Bd6+ {[%emt 0:00:01]} Ke8 {[%emt 0:05:02]} 22. Re1+ {[%emt 0:00:16]} Kd8 {[%emt 0:00:10]} 23. Qb6+ {[%emt 0:00:08]} Rc7 {[%emt 0:01:33]} 24. Nxb5 {[%emt 0:11:43]} Nd5 {[%emt 0:01:20]} 25. Bxc7+ {[%emt 0:00:01]} Qxc7 {[%emt 0:00:54]} 26. Qa6 {[%emt 0:02:19]} Qxc2+ {[%emt 0:00:22]} 27. Kxc2 {[%emt 0:00:01]} Nb4+ {[%emt 0:00:08]} 28. Kb3 {[%emt 0:00:01]} Nxa6 {[%emt 0:00:09]} 29. Re4 {[%emt 0:00:08]} 0-1

[Event "18th Charleroi Open-A 2019"]
[Site "Charleroi"]
[Date "2019.08.03"]
[Round "9.13"]
[White "Soyunlu, Narmin"]
[Black "Verheyen, Olivier"]
[Result "0-1"]
[ECO "A36"]
[WhiteElo "2099"]
[BlackElo "2200"]
[Annotator "NA"]
[PlyCount "62"]
[EventDate "2019.07.22"]
[EventType "swiss"]
[EventCountry "BEL"]
[SourceTitle "playchess.com"]
[Source "ChessBase"]
[SourceQuality "1"]
[TimeControl "40/5400+30:1800+30"]

1. g3 {[%emt 0:00:00]} Nf6 {[%emt 0:00:00]} 2. Bg2 {[%emt 0:00:00]} g6 {[%emt 0:00:00]} 3. c4 {[%emt 0:00:43]} Bg7 {[%emt 0:00:00]} 4. Nc3 {[%emt 0:04:43]} O-O {[%emt 0:00:04]} 5. e4 {[%emt 0:03:15]} d6 {[%emt 0:00:07]} 6. Nge2 {[%emt 0:00:51]} c5 {[%emt 0:00:41]} 7. O-O {[%emt 0:00:51]} Nc6 {[%emt 0:00:15]} 8. h3 {[%emt 0:00:55]} Rb8 {[%emt 0:00:47]} 9. d3 {[%emt 0:07:02]} a6 {[%emt 0:00:13]} 10. a4 {[%emt 0:00:04]} Ne8 {[%emt 0:00:17]} 11. Be3 {[%emt 0:00:13]} b5 {[%emt 0:00:26]} 12. cxb5 {[%emt 0:08:50]} axb5 {[%emt 0:00:25]} 13. Nxb5 {[%emt 0:03:35]} Nc7 {[%emt 0:07:50]} 14. d4 {[%emt 0:32:29]} Nxb5 {[%emt 0:08:31]} 15. axb5 {[%emt 0:00:05]} Rxb5 {[%emt 0:03:43]} 16. Qa4 {[%emt 0:10:42]} Nxd4 {[%emt 0:08:21]} 17. Nxd4 {[%emt 0:04:35]} Rb4 {[%emt 0:00:09]} 18. Qa3 {[%emt 0:03:11]} Bxd4 {[%emt 0:00:18]} 19. Bxd4 {[%emt 0:00:25]} Rxd4 {[%emt 0:00:02]} 20. Qa7 {[%emt 0:05:48]} Qd7 {[%emt 0:05:23]} 21. Rfc1 {[%emt 0:03:19]} e5 {[%emt 0:02:37]} 22. Qa3 {[%emt 0:02:19]} Qb5 {[%emt 0:01:39]} 23. Qc3 {[%emt 0:01:50]} Be6 {[%emt 0:02:40]} 24. Rc2 {[%emt 0:02:14]} Rb8 {[%emt 0:01:26]} 25. Ra5 {[%emt 0:00:47]} Qb6 {[%emt 0:56:36]} 26. Ra1 {[%emt 0:00:28]} Rc4 {[%emt 0:00:00]} 27. Qd2 {[%emt 0:00:35]} Rxc2 {[%emt 0:00:00]} 28. Qxc2 {[%emt 0:00:01]} Qxb2 {[%emt 0:00:00]} 29. Qa4 {[%emt 0:00:47]} Qd4 {[%emt 0:00:00]} 30. Qa5 {[%emt 0:02:02]} Rb2 {[%emt 0:00:00]} 31. Qe1 {[%emt 0:00:33]} Qd2 {[%emt 0:00:00]} 0-1

[Event "18th Charleroi Open-A 2019"]
[Site "Charleroi"]
[Date "2019.08.03"]
[Round "9.14"]
[White "Ghyselen, Wouter"]
[Black "Decrop, Benjamin"]
[Result "1/2-1/2"]
[ECO "D01"]
[WhiteElo "2078"]
[BlackElo "2183"]
[Annotator "NA"]
[PlyCount "62"]
[EventDate "2019.07.22"]
[EventType "swiss"]
[EventCountry "BEL"]
[SourceTitle "playchess.com"]
[Source "ChessBase"]
[SourceQuality "1"]
[TimeControl "40/5400+30:1800+30"]

1. d4 {[%emt 0:00:00]} Nf6 {[%emt 0:00:00]} 2. Bg5 {[%emt 0:00:00]} d5 {[%emt 0:00:00]} 3. e3 {[%emt 0:00:00]} c5 {[%emt 0:00:00]} 4. Bxf6 {[%emt 0:00:19]} gxf6 {[%emt 0:00:00]} 5. Nc3 {[%emt 0:00:04]} Nc6 {[%emt 0:00:09]} 6. Qh5 {[%emt 0:00:32]} e6 {[%emt 0:00:42]} 7. O-O-O {[%emt 0:00:25]} cxd4 {[%emt 0:02:56]} 8. exd4 {[%emt 0:03:59]} Bd7 {[%emt 0:00:37]} 9. Nge2 {[%emt 0:00:18]} f5 {[%emt 0:00:54]} 10. g3 {[%emt 0:04:00]} Qf6 {[%emt 0:01:53]} 11. Bg2 {[%emt 0:14:44]} Qh6+ {[%emt 0:12:09]} 12. Qxh6 {[%emt 0:00:40]} Bxh6+ {[%emt 0:00:04]} 13. Kb1 {[%emt 0:04:32]} O-O-O {[%emt 0:08:32]} 14. Bf3 {[%emt 0:04:06]} Bg7 {[%emt 0:16:33]} 15. Bh5 {[%emt 0:03:24]} Rhf8 {[%emt 0:05:03]} 16. Rd3 {[%emt 0:11:51]} Ne7 {[%emt 0:02:10]} 17. Rhd1 {[%emt 0:05:12]} Ng8 {[%emt 0:01:12]} 18. Nf4 {[%emt 0:20:39]} Kb8 {[%emt 0:03:09]} 19. Be2 {[%emt 0:05:04]} Bh8 {[%emt 0:10:04]} 20. Nh5 {[%emt 0:02:13]} Ne7 {[%emt 0:05:00]} 21. Bf1 {[%emt 0:08:59]} Rc8 {[%emt 0:02:43]} 22. Bh3 {[%emt 0:01:12]} Rg8 {[%emt 0:02:22]} 23. Nf4 {[%emt 0:02:41]} Ng6 {[%emt 0:02:26]} 24. Nh5 {[%emt 0:02:21]} Rc7 {[%emt 0:02:10]} 25. f3 {[%emt 0:00:54]} Ne7 {[%emt 0:02:01]} 26. g4 {[%emt 0:00:34]} fxg4 {[%emt 0:02:34]} 27. fxg4 {[%emt 0:00:03]} Be8 {[%emt 0:00:08]} 28. Nf4 {[%emt 0:01:53]} Ng6 {[%emt 0:03:56]} 29. Nh5 {[%emt 0:00:44]} Ne7 {[%emt 0:02:07]} 30. Nf4 {[%emt 0:00:02]} Ng6 {[%emt 0:06:37]} 31. Nh5 {[%emt 0:00:22]} Ne7 {[%emt 0:00:21]} 1/2-1/2